Workbook

Sheet (1)
A1: Green Cells Means that it has a formula
A3: Categories or Classes | B3: Frequency | C3: Relative Frequency | D3: % Frequency
A4: A | B4: 60 | C4: =B4/B$7 -> 0.5 | D4: =C4 -> 0.5
A5: B | B5: 24 | C5: =B5/B$7 -> 0.2 | D5: =C5 -> 0.2
A6: C | B6: 36 | C6: =B6/B$7 -> 0.3 | D6: =C6 -> 0.3
A7: Totals | B7: =SUM(B4:B6) -> 120 | C7: =SUM(C4:C6) -> 1 | D7: =SUM(D4:D6) -> 1

Sheet (2)
A1: Green Cells Means that it has a formula
A3: Categories or Classes | B3: Frequency | C3: Relative Frequency | D3: % Frequency
A4: A | B4: =C4*B$8 -> 44 | C4: 0.22 | D4: =B4/B$8 -> 0.22
A5: B | B5: =C5*B$8 -> 36 | C5: 0.18 | D5: =B5/B$8 -> 0.18
A6: C | B6: =C6*B$8 -> 80 | C6: 0.4 | D6: =B6/B$8 -> 0.4
A7: D | B7: =C7*B$8 -> 40 | C7: =1-SUM(C4:C6) -> 0.2 | D7: =B7/B$8 -> 0.2
B8: 200 | C8: =SUM(C4:C7) -> 1 | D8: =SUM(D4:D7) -> 1

Sheet (3)
A1: Green Cells Means that it has a formula
A3: Categories or Classes | B3: Frequency | C3: Relative Frequency | D3: % Frequency | E3: Degree # | F3: Degree #
A4: Yes | B4: 58 | C4: =B4/B$7 -> 0.4833333333 | D4: =C4 -> 0.4833333333 | E4: =360*D4 -> 174 | F4: =E4&CHAR(174) -> 174®
A5: No | B5: 42 | C5: =B5/B$7 -> 0.35 | D5: =C5 -> 0.35 | E5: =360*D5 -> 126 | F5: =E5&CHAR(174) -> 126®
A6: No-opinion | B6: 20 | C6: =B6/B$7 -> 0.1666666667 | D6: =C6 -> 0.1666666667 | E6: =360*D6 -> 60 | F6: =E6&CHAR(174) -> 60®
B7: =SUM(B4:B6) -> 120 | C7: =SUM(C4:C6) -> 1 | D7: =C7 -> 1 | E7: =SUM(E4:E6) -> 360 | F7: =E7&CHAR(174) -> 360®

Sheet (4)
A1: Television Show | D1: Data is from Student Data Disc file "BestTV.xlsx"
A2: Desperate Housewives | D2: Green Cells Means that it has a formula
A3: Without a Trace
A4: CSI | C4: a | D4: Categorical | I4: c
A5: Law & Order | C5: d | D5: CSI has the largest viewing audience and Desperate Housewives has the second highest.
A6: CSI
A7: Desperate Housewives | C7: b | D7: Television Show (Category or Class) | E7: Frequency | F7: Relative Frequency | G7: % Frequency
A8: Desperate Housewives | D8: CSI | E8: =COUNTIF($A$2:$A$51,D8) -> 18 | F8: =E8/E$12 -> 0.36 | G8: =F8 -> 0.36
A9: Law & Order | D9: Desperate Housewives | E9: =COUNTIF($A$2:$A$51,D9) -> 13 | F9: =E9/E$12 -> 0.26 | G9: =F9 -> 0.26
A10: Law & Order | D10: Law & Order | E10: =COUNTIF($A$2:$A$51,D10) -> 10 | F10: =E10/E$12 -> 0.2 | G10: =F10 -> 0.2
A11: CSI | D11: Without a Trace | E11: =COUNTIF($A$2:$A$51,D11) -> 9 | F11: =E11/E$12 -> 0.18 | G11: =F11 -> 0.18
A12: CSI | E12: =SUM(E8:E11) -> 50 | F12: =SUM(F8:F11) -> 1 | G12: =F12 -> 1
A13: CSI
A14: Desperate Housewives | D14: or
A15: Law & Order
A16: Desperate Housewives | C16: b | D16: Television Show | E16: Frequency
A17: Without a Trace | D17: CSI | E17: 18
A18: CSI | D18: Desperate Housewives | E18: 13
A19: CSI | D19: Law & Order | E19: 10
A20: CSI | D20: Without a Trace | E20: 9
A21: Desperate Housewives | D21: Grand Total | E21: 50
A22: Desperate Housewives
A23: Law & Order
A24: Without a Trace | C24: c
A25: Law & Order
A26: Desperate Housewives
A27: CSI
A28: CSI
A29: Without a Trace
A30: CSI
A31: Without a Trace
A32: CSI
A33: Without a Trace
A34: CSI
A35: CSI
A36: Law & Order
A37: Without a Trace
A38: Law & Order
A39: Without a Trace
A40: CSI
A41: Without a Trace
A42: Law & Order
A43: CSI
A44: Desperate Housewives
A45: Desperate Housewives
A46: CSI
A47: Desperate Housewives
A48: CSI
A49: Desperate Housewives
A50: Desperate Housewives
A51: Law & Order

Sheet (7)
A1: Green Cells Means that it has a formula
A3: Ratings | C3: Rating (Category) | E3: Frequency | F3: Relative Frequency | G3: % Frequency
A4: E | C4: Excellent | D4: =LEFT(C4,1) -> E | E4: =COUNTIF($A$4:$A$53,D4) -> 20 | F4: =E4/E$9 -> 0.4 | G4: =F4 -> 0.4
A5: E | C5: Very Good | D5: =LEFT(C5,1) -> V | E5: =COUNTIF($A$4:$A$53,D5) -> 23 | F5: =E5/E$9 -> 0.46 | G5: 0.46
A6: V | C6: Good | D6: =LEFT(C6,1) -> G | E6: =COUNTIF($A$4:$A$53,D6) -> 4 | F6: =E6/E$9 -> 0.08 | G6: 0.08
A7: G | C7: Fair | D7: =LEFT(C7,1) -> F | E7: =COUNTIF($A$4:$A$53,D7) -> 1 | F7: =E7/E$9 -> 0.02 | G7: 0.02
A8: E | C8: Poor | D8: =LEFT(C8,1) -> P | E8: =COUNTIF($A$4:$A$53,D8) -> 2 | F8: =E8/E$9 -> 0.04 | G8: 0.04
A9: E | E9: =SUM(E4:E8) -> 50 | F9: =SUM(F4:F8) -> 1 | G9: 1
A10: G
A11: V
A12: E | C12: Row Labels | D12: Count of Ratings
A13: E | C13: O | D13: 19
A14: G | C14: V | D14: 13
A15: V | C15: G | D15: 10
A16: V | C16: A | D16: 6
A17: V | C17: P | D17: 2
A18: V | C18: Grand Total | D18: 50
A19: V
A20: E | C20: a | D20: Overall satisfaction is quite good.
A21: F | C21: b | D21: Yes absolutely. In particular the Fair and
A22: E | D22: Poor respondents could say why they were
A23: V | D23: not satisfied. That information could be
A24: V | D24: used to try and make improvements.
A25: E
A26: V
A27: V
A28: E
A29: E
A30: V
A31: E
A32: E
A33: P
A34: V
A35: E
A36: V
A37: V
A38: E
A39: V
A40: E
A41: V
A42: V
A43: E
A44: V
A45: E
A46: E
A47: V
A48: V
A49: V
A50: E
A51: G
A52: V
A53: P
A54: E
A55: V
A56: E
A57: V
A58: V

Sheet (10)
A1: USA Rating | C1: USA Rating | D1: Frequency | E1: % Frequency
A2: Fair | C2: Excellent | D2: =COUNTIF($A$2:$A$1016,C2) -> 20 | E2: =D2/$D$8 -> 0.02237136465
A3: Fair | C3: Good | D3: =COUNTIF($A$2:$A$1016,C3) -> 101 | E3: =D3/$D$8 -> 0.1129753915
A4: Fair | C4: Fair | D4: =COUNTIF($A$2:$A$1016,C4) -> 528 | E4: =D4/$D$8 -> 0.5906040268
A5: Fair | C5: Bad | D5: =COUNTIF($A$2:$A$1016,C5) -> 244 | E5: =D5/$D$8 -> 0.2729306488
A6: Fair | C6: Terrible | D6: 122 | E6: =D6/$D$8 -> 0.1364653244
A7: Fair
A8: Bad | C8: Total | D8: =SUM(D4:D6) -> 894 | E8: =SUM(E4:E6) -> 1
A9: Bad
A10: Fair | C10: Spain Rating | D10: Frequency | E10: % Frequency
A11: Fair | C11: Excellent | D11: 0 | E11: =D11/$D$17 -> 0
A12: Terrible | C12: Good | D12: 4 | E12: =D12/$D$17 -> 0.04
A13: Bad | C13: Fair | D13: 46 | E13: 0.46
A14: Fair | C14: Bad | D14: 40 | E14: 0.4
A15: Terrible | C15: Terrible | D15: 10 | E15: 0.1
A16: Bad
A17: Fair | C17: Total | D17: =SUM(D11:D15) -> 100 | E17: =SUM(E13:E15) -> 0.96
A18: Fair
A19: Excellent
A20: Fair | C20: d | D20: In the poll people in the united states think the Fed is doing a fair
A21: Bad | D21: job (59%), with more people thinking it is bad and terrible
A22: Bad | D22: tha good and excellent.
A23: Good | C23: e | D23: The Spain poll shows that people think that the ECB is doing fair
A24: Fair | D24: (46%), with many more people saying that they are doing bad and
A25: Excellent | D25: terrible than good and excellent. In fact, in the Spain poll, 9% said
A26: Bad | D26: that the ECB is doing Excellent. In general, the people
A27: Bad
A28: Fair
A29: Terrible
A30: Good
A31: Fair
A32: Fair
A33: Fair
A34: Fair
A35: Terrible
A36: Fair
A37: Terrible
A38: Bad
A39: Terrible
A40: Fair
A41: Good
A42: Fair
A43: Bad
A44: Good
A45: Fair
A46: Fair
A47: Bad
A48: Fair
A49: Fair
A50: Fair
A51: Fair
A52: Fair
A53: Bad
A54: Bad
A55: Fair
A56: Fair
A57: Bad
A58: Bad
A59: Good
A60: Fair
A61: Fair
A62: Fair
A63: Fair
A64: Bad
A65: Bad
A66: Fair
A67: Bad
A68: Bad
A69: Fair
A70: Terrible
A71: Fair
A72: Excellent
A73: Fair
A74: Fair
A75: Fair
A76: Terrible
A77: Bad
A78: Fair
A79: Fair
A80: Good
A81: Fair
A82: Fair
A83: Bad
A84: Fair
A85: Fair
A86: Fair
A87: Good
A88: Fair
A89: Fair
A90: Fair
A91: Bad
A92: Fair
A93: Fair
A94: Fair
A95: Fair
A96: Terrible
A97: Fair
A98: Fair
A99: Fair
A100: Fair
A101: Bad
A102: Fair
A103: Good
A104: Fair
A105: Bad
A106: Good
A107: Terrible
A108: Fair
A109: Terrible
A110: Terrible
A111: Good
A112: Bad
A113: Fair
A114: Fair
A115: Good
A116: Good
A117: Fair
A118: Fair
A119: Fair
A120: Fair
A121: Fair
A122: Fair
A123: Terrible
A124: Fair
A125: Fair
A126: Bad
A127: Good
A128: Bad
A129: Fair
A130: Bad
A131: Fair
A132: Fair
A133: Fair
A134: Fair
A135: Fair
A136: Fair
A137: Fair
A138: Good
A139: Good
A140: Terrible
A141: Fair
A142: Bad
A143: Bad
A144: Fair
A145: Bad
A146: Bad
A147: Fair
A148: Terrible
A149: Fair
A150: Excellent
A151: Fair
A152: Fair
A153: Fair
A154: Fair
A155: Fair
A156: Fair
A157: Bad
A158: Fair
A159: Fair
A160: Fair
A161: Terrible
A162: Fair
A163: Fair
A164: Fair
A165: Fair
A166: Terrible
A167: Bad
A168: Good
A169: Good
A170: Fair
A171: Bad
A172: Bad
A173: Fair
A174: Bad
A175: Terrible
A176: Bad
A177: Excellent
A178: Bad
A179: Bad
A180: Bad
A181: Bad
A182: Fair
A183: Terrible
A184: Bad
A185: Fair
A186: Fair
A187: Good
A188: Fair
A189: Bad
A190: Fair
A191: Bad
A192: Bad
A193: Fair
A194: Excellent
A195: Bad
A196: Terrible
A197: Fair
A198: Terrible
A199: Terrible
A200: Fair
... 816 more rows

Sheet (11)
A1: Integer Data
A3: Data | C3: a | D3: Data | E3: Frequency | G3: lower | H3: upper | I3: Class | J3: Frequency | K3: Relative Frequency | L3: % Frequency
A4: 14 | D4: 12-14 | E4: 2 | G4: 12 | H4: =G4+$G$12 -> 14 | I4: =G4&" - "&H4 -> 12 - 14 | J4: =COUNTIFS($A$4:$A$43,">="&G4,$A$4:$A$43,"<="&H4) -> 2 | K4: =J4/$J$9 -> 0.05 | L4: =K4 -> 0.05
A5: 19 | D5: 15-17 | E5: 8 | G5: =H4+1 -> 15 | H5: =G5+$G$12 -> 17 | I5: 15 - 17 | J5: 8 | K5: =J5/$J$9 -> 0.2 | L5: 0.2
A6: 24 | D6: 18-20 | E6: 11 | G6: =H5+1 -> 18 | H6: 20 | I6: 18 - 20 | J6: 11 | K6: =J6/$J$9 -> 0.275 | L6: 0.275
A7: 19 | D7: 21-23 | E7: 10 | G7: 21 | H7: 23 | I7: 21 - 23 | J7: 10 | K7: =J7/$J$9 -> 0.25 | L7: 0.25
A8: 16 | D8: 24-26 | E8: 9 | G8: 24 | H8: 26 | I8: 24 - 26 | J8: 9 | K8: =J8/$J$9 -> 0.225 | L8: 0.225
A9: 20 | D9: Grand Total | E9: 40 | I9: Total | J9: =SUM(J4:J8) -> 40 | K9: =SUM(K4:K8) -> 1 | L9: 1
A10: 24
A11: 20 | C11: b | D11: Data | E11: % Frequency | G11: increment
A12: 21 | D12: 12-14 | E12: 0.05 | G12: 2
A13: 22 | D13: 15-17 | E13: 0.2
A14: 24 | D14: 18-20 | E14: 0.275
A15: 18 | D15: 21-23 | E15: 0.25
A16: 17 | D16: 24-26 | E16: 0.225
A17: 23 | D17: Grand Total | E17: 1
A18: 26
A19: 22 | C19: b | D19: Data | E19: Relative Frequency (Proportion)
A20: 23 | D20: 12-14 | E20: 0.05
A21: 25 | D21: 15-17 | E21: 0.2
A22: 25 | D22: 18-20 | E22: 0.275
A23: 19 | D23: 21-23 | E23: 0.25
A24: 18 | D24: 24-26 | E24: 0.225
A25: 16 | D25: Grand Total | E25: 1
A26: 15
A27: 24
A28: 21
A29: 16
A30: 19
A31: 21
A32: 23
A33: 20
A34: 22
A35: 22
A36: 16
A37: 16
A38: 16
A39: 12
A40: 25
A41: 19
A42: 24
A43: 20

Sheet (15)
A1: Integer Data
A3: Wait Time | C3: a-d | E3: Values
A4: 2 | D4: Wait Time | E4: Frequency | F4: Relative Frequency | G4: Cumulative Frequency | H4: % Cumulative
A5: 5 | D5: 0-4 | E5: 4 | F5: 0.2 | G5: 4 | H5: 0.2
A6: 10 | D6: 5-9 | E6: 8 | F6: 0.4 | G6: 12 | H6: 0.6
A7: 12 | D7: 10-14 | E7: 5 | F7: 0.25 | G7: 17 | H7: 0.85
A8: 4 | D8: 15-19 | E8: 2 | F8: 0.1 | G8: 19 | H8: 0.95
A9: 4 | D9: 20-24 | E9: 1 | F9: 0.05 | G9: 20 | H9: 1
A10: 5 | D10: Grand Total | E10: 20 | F10: 1
A11: 17
A12: 11 | D12: e | E12: 0.6 of the patients needing emergency service get that service in 9 or fewer minutes
A13: 8
A14: 9
A15: 8 | C15: a-d | D15: lower | E15: upper | F15: Class | G15: Frequency | H15: Relative Frequency | I15: Cumulative Frequency | J15: % Cumulative
A16: 12 | D16: 0 | E16: =D16+$D$24 -> 4 | F16: =D16&" - "&E16 -> 0 - 4 | G16: =COUNTIFS($A$4:$A$23,">="&D16,$A$4:$A$23,"<="&E16) -> 4 | H16: =G16/$G$21 -> 0.2 | I16: =SUM($G$16:G16) -> 4 | J16: =I16/$I$20 -> 0.2
A17: 21 | D17: =E16+1 -> 5 | E17: =D17+$D$24 -> 9 | F17: 5 - 9 | G17: 8 | H17: =G17/$G$21 -> 0.4 | I17: =SUM($G$16:G17) -> 12 | J17: =I17/$I$20 -> 0.6
A18: 6 | D18: =E17+1 -> 10 | E18: 14 | F18: 10 - 14 | G18: 5 | H18: 0.25 | I18: =SUM($G$16:G18) -> 17 | J18: 0.85
A19: 8 | D19: 15 | E19: 19 | F19: 15 - 19 | G19: 2 | H19: 0.1 | I19: =SUM($G$16:G19) -> 19 | J19: 0.95
A20: 7 | D20: 20 | E20: 24 | F20: 20 - 24 | G20: 1 | H20: 0.05 | I20: =SUM($G$16:G20) -> 20 | J20: 1
A21: 13 | F21: Total | G21: =SUM(G16:G20) -> 20 | H21: =SUM(H16:H20) -> 1
A22: 18
A23: 3 | D23: increment:
D24: 4

Sheet (19)
A3: Corporation | B3: Revenue ($B) | D3: Revenue | E3: Frequency | F3: Relative Frequency | G3: Cum Frequency | H3: % Cum Frequency
A4: Exxon Mobil | B4: 443 | D4: 0-49 | E4: 6 | F4: 0.12 | G4: 6 | H4: 0.12
A5: Walmart | B5: 406 | D5: 50-99 | E5: 29 | F5: 0.58 | G5: 35 | H5: 0.7
A6: Chevron | B6: 263 | D6: 100-149 | E6: 11 | F6: 0.22 | G6: 46 | H6: 0.92
A7: ConocoPhillips | B7: 231 | D7: 150-199 | E7: 0 | F7: 0 | G7: 46 | H7: 0.92
A8: General Electric | B8: 149 | D8: 200-249 | E8: 1 | F8: 0.02 | G8: 47 | H8: 0.94
A9: Ford Motors | B9: 146 | D9: 250-299 | E9: 1 | F9: 0.02 | G9: 48 | H9: 0.96
A10: AT&T | B10: 124 | D10: 300-349 | E10: 0 | F10: 0 | G10: 48 | H10: 0.96
A11: Hewlett-Packard | B11: 118 | D11: 350-399 | E11: 0 | F11: 0 | G11: 48 | H11: 0.96
A12: Valero Energy | B12: 118 | D12: 400-449 | E12: 2 | F12: 0.04 | G12: 50 | H12: 1
A13: Bank of America | B13: 113 | D13: Grand Total | E13: 50 | F13: 1
A14: Citigroup | B14: 112
A15: Berkshire Hathaway | B15: 108 | D15: Histogram of 50 Largest Corp's Revenue in billions $
A16: IBM | B16: 104 | D16: Upper | E16: Lower | F16: Class | G16: Frequency | H16: Relative Frequency | I16: Cum Frequency | J16: % Cum Frequency
A17: McKesson | B17: 102 | D17: 0 | E17: =D17+$D$28 -> 49 | F17: =D17&" - "&E17 -> 0 - 49 | G17: =COUNTIFS($B$4:$B$53,">="&D17,$B$4:$B$53,"<="&E17) -> 6 | H17: =G17/$G$26 -> 0.12 | I17: =SUM($G$17:G17) -> 6 | J17: =SUM($H$17:H17) -> 0.12 | L17: =I17/$I$25 -> 0.12
A18: JPMorgan Chase | B18: 101 | D18: =E17+1 -> 50 | E18: 99 | F18: =D18&" - "&E18 -> 50 - 99 | G18: 29 | H18: 0.58 | I18: =SUM($G$17:G18) -> 35 | J18: =SUM($H$17:H18) -> 0.7 | L18: 0.7
A19: Verizon | B19: 97 | D19: =E18+1 -> 100 | E19: 149 | F19: 100 - 149 | G19: 11 | H19: 0.22 | I19: =SUM($G$17:G19) -> 46 | J19: =SUM($H$17:H19) -> 0.92 | L19: 0.92
A20: Cardinal Health | B20: 91 | D20: 150 | E20: 199 | F20: 150 - 199 | G20: 0 | H20: 0 | I20: =SUM($G$17:G20) -> 46 | J20: =SUM($H$17:H20) -> 0.92 | L20: 0.92
A21: CVS Caremark | B21: 87 | D21: 200 | E21: 249 | F21: 200 - 249 | G21: 1 | H21: 0.02 | I21: =SUM($G$17:G21) -> 47 | J21: =SUM($H$17:H21) -> 0.94 | L21: 0.94
A22: Procter & Gamble | B22: 84 | D22: 250 | E22: 299 | F22: 250 - 299 | G22: 1 | H22: 0.02 | I22: =SUM($G$17:G22) -> 48 | J22: =SUM($H$17:H22) -> 0.96 | L22: 0.96
A23: UnitedHealth Group | B23: 81 | D23: 300 | E23: 349 | F23: 300 - 349 | G23: 0 | H23: 0 | I23: =SUM($G$17:G23) -> 48 | J23: =SUM($H$17:H23) -> 0.96 | L23: 0.96
A24: Kroger | B24: 76 | D24: 350 | E24: 399 | F24: 350 - 399 | G24: 0 | H24: 0 | I24: =SUM($G$17:G24) -> 48 | J24: =SUM($H$17:H24) -> 0.96 | L24: 0.96
A25: Marathon Oil | B25: 74 | D25: 400 | E25: 449 | F25: 400 - 449 | G25: 2 | H25: 0.04 | I25: =SUM($G$17:G25) -> 50 | J25: =SUM($H$17:H25) -> 1 | L25: 1
A26: Costco Wholesale | B26: 72 | F26: Total | G26: =SUM(G17:G25) -> 50 | H26: =SUM(H17:H25) -> 1
A27: Amerisource Bergen | B27: 71 | D27: increnment:
A28: Home Depot | B28: 71 | D28: 49
A29: Archer Daniels Midland | B29: 70
A30: Target | B30: 65 | D30: e | E30: Most of the companies make between 50 and 100 billion in revenue and 92% of the companies make 149 billion or less.
A31: Johnson & Johnson | B31: 64 | D31: f | E31: The distribution is concentrated between 0 and 149 billion in revenues. The distribution has a very strong positive skew because a few companies have very high revenues
A32: Morgan Stanley | B32: 62 | D32: g | E32: The largest corp by revenue in 2010 was Exxon Mobile
A33: Boeing | B33: 61
A34: Dell | B34: 61 | E34: Max = | F34: =MAX(B4:B53) -> 443
A35: State Farm Insurance | B35: 61 | F35: =INDEX($A$4:$A$53,MATCH(F34,$B$4:$B$53,0)) -> Exxon Mobil
A36: WellPoint | B36: 61
A37: Microsoft | B37: 60
A38: United Technologies | B38: 59
A39: Walgreen | B39: 59
A40: Dow Chemical | B40: 58
A41: MetLife | B41: 55
A42: Goldman Sachs | B42: 54
A43: Sunoco | B43: 52
A44: Wells Fargo | B44: 52
A45: Caterpillar | B45: 51
A46: Medco Health | B46: 51
A47: United Parcel Service | B47: 51
A48: Lowe's | B48: 48
A49: Pfizer | B49: 48
A50: Sears Holdings | B50: 47
A51: Time Warner | B51: 47
A52: Safeway | B52: 44
A53: Pepsico | B53: 43

Sheet (21)
A1: Deciaml Data
A2: Personal Computer Use per week
A4: Hours | C4: Step 1: Determine Number of Classes using the guide: 2^k > n
A5: 4.1 | C5: COUNT function = No. in Sample = n = | D5: =COUNT(A5:A54) -> 50
A6: 3.1 | C6: k = No. Classes = | D6: 6 | E6: This is a judgment call (the art side of statistics)
A7: 4.1 | C7: 2^7 = | D7: =2^D6 -> 64
A8: 10.8 | C8: Step 2: Determine width of Classes
A9: 7.2 | C9: MAX | D9: =MAX(A5:A54) -> 14.8
A10: 1.5 | C10: MIN | D10: =MIN(A5:A54) -> 0.7
A11: 4.8 | C11: "Range of ages" | D11: =D9-D10 -> 14.1
A12: 4.1 | C12: Approximate width = | D12: =(D9-D10)/D6 -> 2.35
A13: 2.8 | C13: Width of Class (Increment for each class) | D13: 3 | E13: This is a judgment call (the art side of statistics)
A14: 6.1 | C14: "Range for classes" = ClassWidth*k = | D14: =D13*D6 -> 18
A15: 10.4 | C15: "Range for classes" > "Range of ages"? | D15: =D14>D11 -> TRUE | E15: Must be bigger than "Range of ages"
A16: 2 | C16: Step 3: Determine Class Limits
A17: 8.8 | C17: Lower Limit of First Class (look at MIN then estimate) | D17: 0 | E17: This is a judgment call (the art side of statistics)
A18: 9.5
A19: 5.7 | C19: upper | D19: lower | E19: Class | F19: Frequency | G19: Relative Frequency | H19: % Cumulative Frequency
A20: 5.9 | C20: 0 | D20: =C20+$D$13 -> 3 | E20: =C20&" <= Hours < "&D20 -> 0 <= Hours < 3 | F20: =COUNTIFS($A$5:$A$54,">="&C20,$A$5:$A$54,"<"&D20) -> 5 | G20: =F20/$F$25 -> 0.1 | H20: =SUM($G$20:G20) -> 0.1
A21: 14.8 | C21: =D20 -> 3 | D21: =C21+$D$13 -> 6 | E21: =C21&" <= Hours < "&D21 -> 3 <= Hours < 6 | F21: =COUNTIFS($A$5:$A$54,">="&C21,$A$5:$A$54,"<"&D21) -> 28 | G21: 0.56 | H21: =SUM($G$20:G21) -> 0.66
A22: 5.6 | C22: =D21 -> 6 | D22: =C22+$D$13 -> 9 | E22: 6 <= Hours < 9 | F22: 8 | G22: 0.16 | H22: =SUM($G$20:G22) -> 0.82
A23: 12.9 | C23: =D22 -> 9 | D23: =C23+$D$13 -> 12 | E23: 9 <= Hours < 12 | F23: 6 | G23: 0.12 | H23: =SUM($G$20:G23) -> 0.94
A24: 5.9 | C24: =D23 -> 12 | D24: =C24+$D$13 -> 15 | E24: 12 <= Hours < 15 | F24: 3 | G24: 0.06 | H24: =SUM($G$20:G24) -> 1
A25: 3.4 | E25: Total | F25: =SUM(F20:F24) -> 50 | G25: =SUM(G20:G24) -> 1
A26: 5.4
A27: 4.3
A28: 12.1 | E28: Ogive Book Data Points
A29: 4.7
A30: 5.7
A31: 4.2
A32: 3.3
A33: 0.7
A34: 3.9
A35: 1.6
A36: 3.9
A37: 7.1
A38: 4
A39: 3.7
A40: 6.1
A41: 4.1
A42: 10.3
A43: 9.2
A44: 3.1
A45: 3
A46: 11.1
A47: 6.2
A48: 4.4
A49: 6.1
A50: 3.7
A51: 3.5
A52: 7.6
A53: 5.7
A54: 3.1

Sheet (27)
A1: Resort | B1: Location | C1: Daily Rate | F1: MIN | G1: =MIN(C2:C16) -> 75
A2: BC | B2: CL | C2: 137 | F2: MAX | G2: =MAX(C2:C16) -> 145
A3: DV | B3: UT | C3: 115
A4: DP | B4: CA | C4: 95 | E4: a | F4: 7 | G4: =REPT(" 0 ",COUNTIF($C$2:$C$16,F4*10+0))&REPT(" 1 ",COUNTIF($C$2:$C$16,F4*10+1))&REPT(" 2 ",COUNTIF($C$2:$C$16,F4*10+2))&REPT(" 3 ",COUNTIF($C$2:$C$16,F4*10+3))&REPT(" 4 ",COUNTIF($C$2:$C$16,F4*10+4))&REPT(" 5 ",COUNTIF($C$2:$C$16,F4*10+5))&REPT(" 6 ",COUNTIF($C$2:$C$16,F4*10+6))&REPT(" 7 ",COUNTIF($C$2:$C$16,F4*10+7))&REPT(" 8 ",COUNTIF($C$2:$C$16,F4*10+8))&REPT(" 9 ",COUNTIF($C$2:$C$16,F4*10+9)) -> 5 9
A5: Hea | B5: CA | C5: 145 | F5: 8 | G5: 3 6
A6: Hun | B6: NY | C6: 79 | F6: 9 | G6: 5 6 8
A7: Mam | B7: CA | C7: 111 | F7: 10 | G7: 0 4 4
A8: MS | B8: NH | C8: 96 | F8: 11 | G8: 1 5
A9: MB | B9: OR | C9: 83 | F9: 12
A10: Oke | B10: VT | C10: 86 | F10: 13 | G10: 7
A11: PC | B11: UT | C11: 145 | F11: 14 | G11: 5 5
A12: But | B12: MA | C12: 75 | F12: 15
A13: SB | B13: CO | C13: 98
A14: ST | B14: VT | C14: 104 | E14: b | F14: Observations such as the following can be made using the stem-and-leaf display. • The daily rate varies from $75 to $145 • Typical mid-priced daily rates are $95 to $115 with the average daily rate around $100. • A daily rate in excess of $115 should be considered relatively high. High daily rates of $137 and $145 were found at three ski resorts.
A15: SB | B15: CA | C15: 100
A16: WB | B16: BC | C16: 104

Sheet (30)
A1: Observation | B1: x | C1: y | E1: a
A2: 1 | B2: -22 | C2: 22
A3: 2 | B3: -33 | C3: 49
A4: 3 | B4: 2 | C4: 8
A5: 4 | B5: 29 | C5: -16
A6: 5 | B6: -13 | C6: 10
A7: 6 | B7: 21 | C7: -28
A8: 7 | B8: -13 | C8: 27
A9: 8 | B9: -23 | C9: 35
A10: 9 | B10: 14 | C10: -5
A11: 10 | B11: 3 | C11: -3
A12: 11 | B12: -37 | C12: 48
A13: 12 | B13: 34 | C13: -29
A14: 13 | B14: 9 | C14: -18
A15: 14 | B15: -33 | C15: 31
A16: 15 | B16: 20 | C16: -16
A17: 16 | B17: -3 | C17: 14
A18: 17 | B18: -15 | C18: 18
A19: 18 | B19: 12 | C19: 17
A20: 19 | B20: -20 | C20: -11
A21: 20 | B21: -7 | C21: -22
A24: b | B24: There is a negative relationship between x and y; y decreases as x increases.

Sheet (33)
A2: Male Golfers | F2: Female Golfers | K2: Male Golfers | P2: Female Golfers | S2: Male Golfers | W2: Female Golfers
B3: Green Conditions | G3: Green Conditions | L3: Green Conditions | P3: Green Conditions | T3: Green Conditions | X3: Green Conditions
A4: Handicap | B4: Too Fast | C4: Fine | F4: Handicap | G4: Too Fast | H4: Fine | K4: Handicap | L4: Too Fast | M4: Fine | O4: Handicap | P4: Too Fast | Q4: Fine | S4: Handicap | T4: Too Fast | U4: Fine | W4: Handicap | X4: Too Fast | Y4: Fine
A5: Under 15 | B5: 10 | C5: 40 | D5: =SUM(B5:C5) -> 50 | F5: Under 15 | G5: 1 | H5: 9 | I5: =SUM(G5:H5) -> 10 | K5: Under 15 | L5: =B5/B$7 -> 0.2857142857 | M5: =C5/C$7 -> 0.6153846154 | O5: Under 15 | P5: =G5/G$7 -> 0.025 | Q5: =H5/H$7 -> 0.15 | S5: Under 15 | T5: =B5/$D5 -> 0.2 | U5: =C5/$D5 -> 0.8 | V5: =SUM(T5:U5) -> 1 | W5: Under 15 | X5: =G5/$I5 -> 0.1 | Y5: =H5/$I5 -> 0.9 | Z5: =SUM(X5:Y5) -> 1
A6: 15 or more | B6: 25 | C6: 25 | D6: =SUM(B6:C6) -> 50 | F6: 15 or more | G6: 39 | H6: 51 | I6: =SUM(G6:H6) -> 90 | K6: 15 or more | L6: =B6/B$7 -> 0.7142857143 | M6: =C6/C$7 -> 0.3846153846 | O6: 15 or more | P6: =G6/G$7 -> 0.975 | Q6: =H6/H$7 -> 0.85 | S6: 15 or more | T6: =B6/$D6 -> 0.5 | U6: =C6/$D6 -> 0.5 | V6: =SUM(T6:U6) -> 1 | W6: 15 or more | X6: =G6/$I6 -> 0.4333333333 | Y6: =H6/$I6 -> 0.5666666667 | Z6: =SUM(X6:Y6) -> 1
B7: =SUM(B5:B6) -> 35 | C7: =SUM(C5:C6) -> 65 | D7: =SUM(B7:C7) -> 100 | G7: =SUM(G5:G6) -> 40 | H7: =SUM(H5:H6) -> 60 | I7: =SUM(G7:H7) -> 100 | L7: =SUM(L5:L6) -> 1 | M7: =SUM(M5:M6) -> 1 | P7: =SUM(P5:P6) -> 1 | Q7: =SUM(Q5:Q6) -> 1
B9: Green Conditions | G9: Green Conditions | L9: Green Conditions
A10: Gender | B10: Too Fast | C10: Fine | F10: Gender | G10: Too Fast | H10: Fine | K10: Gender | L10: Too Fast | M10: Fine
A11: Male | B11: =SUM(B5:B6) -> 35 | C11: =SUM(C5:C6) -> 65 | D11: =SUM(B11:C11) -> 100 | F11: Male | G11: =B11/B$13 -> 0.4666666667 | H11: =C11/C$13 -> 0.52 | K11: Male | L11: =B11/$D11 -> 0.35 | M11: =C11/$D11 -> 0.65 | N11: =SUM(L11:M11) -> 1
A12: Female | B12: =SUM(G5:G6) -> 40 | C12: =SUM(H5:H6) -> 60 | D12: =SUM(B12:C12) -> 100 | F12: Female | G12: =B12/B$13 -> 0.5333333333 | H12: =C12/C$13 -> 0.48 | K12: Female | L12: =B12/$D12 -> 0.4 | M12: =C12/$D12 -> 0.6 | N12: =SUM(L12:M12) -> 1
B13: =SUM(B11:B12) -> 75 | C13: =SUM(C11:C12) -> 125 | D13: =SUM(B13:C13) -> 200 | G13: =SUM(G11:G12) -> 1 | H13: =SUM(H11:H12) -> 1 | L13: =SUM(L11:L12) -> 0.75 | M13: =SUM(M11:M12) -> 1.25
A15: a | B15: When the variables are aggregated, 40% of the females say that the greens are too fast compared to 35% of the men who say the greens are too fast.
A16: b | B16: Amongst the better players, 20% (10/50) of the men say that the greens are too fast, whereas 10% (1/10) of the females say that the greens are too fast. This makes the better men players look like complainers.
A17: c | B17: Amongst the players with higher handicaps, the men players are split 50%/50% between Too Fast and Fine, whereas the Female players show 43% too fast and 57% Fine. The gender with the highest percentage that say the Greens are too fast is male, at 50%.
A18: d | B18: If you look at the aggregated data, you do not see the Handicap variable and there are 40% of the females that say the greens are too fast, whereas 35% of the males say the greens are too fast. It is not until you show the Handicap variable in the unaggregated cross tabulations that you can see that amongst the lower handicapped players 20% of the men said it was too fast compared to 10% of the women, and amongst the higher handicapped players 50% of the men said it was too fast compared to 43% of the women. This is Simpson's paradox: Aggregated data, the Females are higher than males, whereas with the unaggregated data, the men are higher at both levels.

Sheet (33.2)
A1: Male/Female | B1: GreenConditions | C1: Handicap
A2: Male | B2: TooFast | C2: Under15
A3: Male | B3: TooFast | C3: Under15 | E3: Count of Handicap | G3: GreenConditions
A4: Male | B4: TooFast | C4: Under15 | E4: Male/Female | F4: Handicap | G4: Fine | H4: TooFast | I4: Grand Total
A5: Male | B5: TooFast | C5: Under15 | E5: Female | F5: 15OrMore | G5: 51 | H5: 39 | I5: 90
A6: Male | B6: TooFast | C6: Under15 | F6: Under15 | G6: 9 | H6: 1 | I6: 10
A7: Male | B7: TooFast | C7: Under15 | E7: Female Total | G7: 60 | H7: 40 | I7: 100
A8: Male | B8: TooFast | C8: Under15 | E8: Male | F8: 15OrMore | G8: 25 | H8: 25 | I8: 50
A9: Male | B9: TooFast | C9: Under15 | F9: Under15 | G9: 40 | H9: 10 | I9: 50
A10: Male | B10: TooFast | C10: Under15 | E10: Male Total | G10: 65 | H10: 35 | I10: 100
A11: Male | B11: TooFast | C11: Under15 | E11: Grand Total | G11: 125 | H11: 75 | I11: 200
A12: Male | B12: Fine | C12: Under15
A13: Male | B13: Fine | C13: Under15
A14: Male | B14: Fine | C14: Under15
A15: Male | B15: Fine | C15: Under15 | E15: Count of Handicap | G15: GreenConditions
A16: Male | B16: Fine | C16: Under15 | E16: Male/Female | F16: Handicap | G16: Fine | H16: TooFast | I16: Grand Total
A17: Male | B17: Fine | C17: Under15 | E17: Female | F17: 15OrMore | G17: 0.5666666667 | H17: 0.4333333333 | I17: 1
A18: Male | B18: Fine | C18: Under15 | F18: Under15 | G18: 0.9 | H18: 0.1 | I18: 1
A19: Male | B19: Fine | C19: Under15 | E19: Female Total | G19: 0.6 | H19: 0.4 | I19: 1
A20: Male | B20: Fine | C20: Under15 | E20: Male | F20: 15OrMore | G20: 0.5 | H20: 0.5 | I20: 1
A21: Male | B21: Fine | C21: Under15 | F21: Under15 | G21: 0.8 | H21: 0.2 | I21: 1
A22: Male | B22: Fine | C22: Under15 | E22: Male Total | G22: 0.65 | H22: 0.35 | I22: 1
A23: Male | B23: Fine | C23: Under15 | E23: Grand Total | G23: 0.625 | H23: 0.375 | I23: 1
A24: Male | B24: Fine | C24: Under15
A25: Male | B25: Fine | C25: Under15 | E25: Simpson's Paradox: 40/100 Females said greens too fast; 35/100 Males said greens too fast. But when we add the handicap variable we can see that 1/10 is less than 10/50 and 39/90 is less than 25/50 -- Both Female "Green Too Fast" are smaller than male's.
A26: Male | B26: Fine | C26: Under15
A27: Male | B27: Fine | C27: Under15
A28: Male | B28: Fine | C28: Under15
A29: Male | B29: Fine | C29: Under15
A30: Male | B30: Fine | C30: Under15
A31: Male | B31: Fine | C31: Under15
A32: Male | B32: Fine | C32: Under15
A33: Male | B33: Fine | C33: Under15
A34: Male | B34: Fine | C34: Under15
A35: Male | B35: Fine | C35: Under15
A36: Male | B36: Fine | C36: Under15
A37: Male | B37: Fine | C37: Under15
A38: Male | B38: Fine | C38: Under15
A39: Male | B39: Fine | C39: Under15
A40: Male | B40: Fine | C40: Under15
A41: Male | B41: Fine | C41: Under15
A42: Male | B42: Fine | C42: Under15
A43: Male | B43: Fine | C43: Under15
A44: Male | B44: Fine | C44: Under15
A45: Male | B45: Fine | C45: Under15
A46: Male | B46: Fine | C46: Under15
A47: Male | B47: Fine | C47: Under15
A48: Male | B48: Fine | C48: Under15
A49: Male | B49: Fine | C49: Under15
A50: Male | B50: Fine | C50: Under15
A51: Male | B51: Fine | C51: Under15
A52: Male | B52: TooFast | C52: 15OrMore
A53: Male | B53: TooFast | C53: 15OrMore
A54: Male | B54: TooFast | C54: 15OrMore
A55: Male | B55: TooFast | C55: 15OrMore
A56: Male | B56: TooFast | C56: 15OrMore
A57: Male | B57: TooFast | C57: 15OrMore
A58: Male | B58: TooFast | C58: 15OrMore
A59: Male | B59: TooFast | C59: 15OrMore
A60: Male | B60: TooFast | C60: 15OrMore
A61: Male | B61: TooFast | C61: 15OrMore
A62: Male | B62: TooFast | C62: 15OrMore
A63: Male | B63: TooFast | C63: 15OrMore
A64: Male | B64: TooFast | C64: 15OrMore
A65: Male | B65: TooFast | C65: 15OrMore
A66: Male | B66: TooFast | C66: 15OrMore
A67: Male | B67: TooFast | C67: 15OrMore
A68: Male | B68: TooFast | C68: 15OrMore
A69: Male | B69: TooFast | C69: 15OrMore
A70: Male | B70: TooFast | C70: 15OrMore
A71: Male | B71: TooFast | C71: 15OrMore
A72: Male | B72: TooFast | C72: 15OrMore
A73: Male | B73: TooFast | C73: 15OrMore
A74: Male | B74: TooFast | C74: 15OrMore
A75: Male | B75: TooFast | C75: 15OrMore
A76: Male | B76: TooFast | C76: 15OrMore
A77: Male | B77: Fine | C77: 15OrMore
A78: Male | B78: Fine | C78: 15OrMore
A79: Male | B79: Fine | C79: 15OrMore
A80: Male | B80: Fine | C80: 15OrMore
A81: Male | B81: Fine | C81: 15OrMore
A82: Male | B82: Fine | C82: 15OrMore
A83: Male | B83: Fine | C83: 15OrMore
A84: Male | B84: Fine | C84: 15OrMore
A85: Male | B85: Fine | C85: 15OrMore
A86: Male | B86: Fine | C86: 15OrMore
A87: Male | B87: Fine | C87: 15OrMore
A88: Male | B88: Fine | C88: 15OrMore
A89: Male | B89: Fine | C89: 15OrMore
A90: Male | B90: Fine | C90: 15OrMore
A91: Male | B91: Fine | C91: 15OrMore
A92: Male | B92: Fine | C92: 15OrMore
A93: Male | B93: Fine | C93: 15OrMore
A94: Male | B94: Fine | C94: 15OrMore
A95: Male | B95: Fine | C95: 15OrMore
A96: Male | B96: Fine | C96: 15OrMore
A97: Male | B97: Fine | C97: 15OrMore
A98: Male | B98: Fine | C98: 15OrMore
A99: Male | B99: Fine | C99: 15OrMore
A100: Male | B100: Fine | C100: 15OrMore
A101: Male | B101: Fine | C101: 15OrMore
A102: Female | B102: TooFast | C102: Under15
A103: Female | B103: Fine | C103: Under15
A104: Female | B104: Fine | C104: Under15
A105: Female | B105: Fine | C105: Under15
A106: Female | B106: Fine | C106: Under15
A107: Female | B107: Fine | C107: Under15
A108: Female | B108: Fine | C108: Under15
A109: Female | B109: Fine | C109: Under15
A110: Female | B110: Fine | C110: Under15
A111: Female | B111: Fine | C111: Under15
A112: Female | B112: TooFast | C112: 15OrMore
A113: Female | B113: TooFast | C113: 15OrMore
A114: Female | B114: TooFast | C114: 15OrMore
A115: Female | B115: TooFast | C115: 15OrMore
A116: Female | B116: TooFast | C116: 15OrMore
A117: Female | B117: TooFast | C117: 15OrMore
A118: Female | B118: TooFast | C118: 15OrMore
A119: Female | B119: TooFast | C119: 15OrMore
A120: Female | B120: TooFast | C120: 15OrMore
A121: Female | B121: TooFast | C121: 15OrMore
A122: Female | B122: TooFast | C122: 15OrMore
A123: Female | B123: TooFast | C123: 15OrMore
A124: Female | B124: TooFast | C124: 15OrMore
A125: Female | B125: TooFast | C125: 15OrMore
A126: Female | B126: TooFast | C126: 15OrMore
A127: Female | B127: TooFast | C127: 15OrMore
A128: Female | B128: TooFast | C128: 15OrMore
A129: Female | B129: TooFast | C129: 15OrMore
A130: Female | B130: TooFast | C130: 15OrMore
A131: Female | B131: TooFast | C131: 15OrMore
A132: Female | B132: TooFast | C132: 15OrMore
A133: Female | B133: TooFast | C133: 15OrMore
A134: Female | B134: TooFast | C134: 15OrMore
A135: Female | B135: TooFast | C135: 15OrMore
A136: Female | B136: TooFast | C136: 15OrMore
A137: Female | B137: TooFast | C137: 15OrMore
A138: Female | B138: TooFast | C138: 15OrMore
A139: Female | B139: TooFast | C139: 15OrMore
A140: Female | B140: TooFast | C140: 15OrMore
A141: Female | B141: TooFast | C141: 15OrMore
A142: Female | B142: TooFast | C142: 15OrMore
A143: Female | B143: TooFast | C143: 15OrMore
A144: Female | B144: TooFast | C144: 15OrMore
A145: Female | B145: TooFast | C145: 15OrMore
A146: Female | B146: TooFast | C146: 15OrMore
A147: Female | B147: TooFast | C147: 15OrMore
A148: Female | B148: TooFast | C148: 15OrMore
A149: Female | B149: TooFast | C149: 15OrMore
A150: Female | B150: TooFast | C150: 15OrMore
A151: Female | B151: Fine | C151: 15OrMore
A152: Female | B152: Fine | C152: 15OrMore
A153: Female | B153: Fine | C153: 15OrMore
A154: Female | B154: Fine | C154: 15OrMore
A155: Female | B155: Fine | C155: 15OrMore
A156: Female | B156: Fine | C156: 15OrMore
A157: Female | B157: Fine | C157: 15OrMore
A158: Female | B158: Fine | C158: 15OrMore
A159: Female | B159: Fine | C159: 15OrMore
A160: Female | B160: Fine | C160: 15OrMore
A161: Female | B161: Fine | C161: 15OrMore
A162: Female | B162: Fine | C162: 15OrMore
A163: Female | B163: Fine | C163: 15OrMore
A164: Female | B164: Fine | C164: 15OrMore
A165: Female | B165: Fine | C165: 15OrMore
A166: Female | B166: Fine | C166: 15OrMore
A167: Female | B167: Fine | C167: 15OrMore
A168: Female | B168: Fine | C168: 15OrMore
A169: Female | B169: Fine | C169: 15OrMore
A170: Female | B170: Fine | C170: 15OrMore
A171: Female | B171: Fine | C171: 15OrMore
A172: Female | B172: Fine | C172: 15OrMore
A173: Female | B173: Fine | C173: 15OrMore
A174: Female | B174: Fine | C174: 15OrMore
A175: Female | B175: Fine | C175: 15OrMore
A176: Female | B176: Fine | C176: 15OrMore
A177: Female | B177: Fine | C177: 15OrMore
A178: Female | B178: Fine | C178: 15OrMore
A179: Female | B179: Fine | C179: 15OrMore
A180: Female | B180: Fine | C180: 15OrMore
A181: Female | B181: Fine | C181: 15OrMore
A182: Female | B182: Fine | C182: 15OrMore
A183: Female | B183: Fine | C183: 15OrMore
A184: Female | B184: Fine | C184: 15OrMore
A185: Female | B185: Fine | C185: 15OrMore
A186: Female | B186: Fine | C186: 15OrMore
A187: Female | B187: Fine | C187: 15OrMore
A188: Female | B188: Fine | C188: 15OrMore
A189: Female | B189: Fine | C189: 15OrMore
A190: Female | B190: Fine | C190: 15OrMore
A191: Female | B191: Fine | C191: 15OrMore
A192: Female | B192: Fine | C192: 15OrMore
A193: Female | B193: Fine | C193: 15OrMore
A194: Female | B194: Fine | C194: 15OrMore
A195: Female | B195: Fine | C195: 15OrMore
A196: Female | B196: Fine | C196: 15OrMore
A197: Female | B197: Fine | C197: 15OrMore
A198: Female | B198: Fine | C198: 15OrMore
A199: Female | B199: Fine | C199: 15OrMore
A200: Female | B200: Fine | C200: 15OrMore
... 1 more rows

Sheet (51)
A1: Company | B1: Stockholders' Equity ($000) | C1: Market Value | D1: Profit ($000)
A2: AGCO | B2: 982.1 | C2: 372.1 | D2: 60.6 | F2: a | H2: Count of Stockholders' Equity ($000) | I2: Profit ($000)
A3: AMP | B3: 2698 | C3: 12017.6 | D3: 2 | H3: Stockholders' Equity ($000) | I3: 0-200 | J3: 200-400 | K3: 400-600 | L3: 600-800 | M3: 800-1000 | N3: 1000-1200 | O3: Grand Total
A4: Apple Computer | B4: 1642 | C4: 4605 | D4: 309 | H4: 0-1200 | I4: 10 | J4: 1 | O4: 11
A5: Baxter International | B5: 2839 | C5: 21743 | D5: 315 | H5: 1200-2400 | I5: 4 | J5: 10 | M5: 2 | O5: 16
A6: Bergen Brunswick | B6: 629.1 | C6: 2787.5 | D6: 3.1 | H6: 2400-3600 | I6: 4 | J6: 3 | K6: 3 | L6: 1 | M6: 1 | O6: 12
A7: Best Buy | B7: 557.7 | C7: 10376.5 | D7: 94.5 | H7: 3600-4800 | J7: 1 | M7: 2 | N7: 2 | O7: 5
A8: Charles Schwab | B8: 1429 | C8: 35340.6 | D8: 348.5 | H8: 4800-6000 | J8: 2 | K8: 3 | L8: 1 | O8: 6
A9: CMS Energy | B9: 2216 | C9: 4546.6 | D9: 285 | H9: Grand Total | I9: 18 | J9: 17 | K9: 6 | L9: 2 | M9: 5 | N9: 2 | O9: 50
A10: Coca-Cola | B10: 2438 | C10: 15704.9 | D10: 142
A11: Colgate-Palmolive | B11: 2085.6 | C11: 26810.2 | D11: 848.6
A12: Comcast | B12: 3815.3 | C12: 26746.1 | D12: 972.1 | F12: b | H12: Count of Stockholders' Equity ($000) | I12: Profit ($000)
A13: Conagra | B13: 2778.9 | C13: 15169.4 | D13: 613.2 | H13: Stockholders' Equity ($000) | I13: 0-200 | J13: 200-400 | K13: 400-600 | L13: 600-800 | M13: 800-1000 | N13: 1000-1200 | O13: Grand Total
A14: Conseco | B14: 5273.6 | C14: 11725.7 | D14: 588.1 | H14: 0-1200 | I14: 0.9090909091 | J14: 0.09090909091 | K14: 0 | L14: 0 | M14: 0 | N14: 0 | O14: 1
A15: Delta Air Lines | B15: 4023 | C15: 9773.7 | D15: 1001 | H15: 1200-2400 | I15: 0.25 | J15: 0.625 | K15: 0 | L15: 0 | M15: 0.125 | N15: 0 | O15: 1
A16: Dollar General | B16: 725.8 | C16: 7193.1 | D16: 182 | H16: 2400-3600 | I16: 0.3333333333 | J16: 0.25 | K16: 0.25 | L16: 0.08333333333 | M16: 0.08333333333 | N16: 0 | O16: 1
A17: Federated | B17: 5709 | C17: 8301.4 | D17: 662 | H17: 3600-4800 | I17: 0 | J17: 0.2 | K17: 0 | L17: 0 | M17: 0.4 | N17: 0.4 | O17: 1
A18: Fortune Brands | B18: 4097.5 | C18: 5639.2 | D18: 263.1 | H18: 4800-6000 | I18: 0 | J18: 0.3333333333 | K18: 0.5 | L18: 0.1666666667 | M18: 0 | N18: 0 | O18: 1
A19: GAP | B19: 1573.7 | C19: 39644.9 | D19: 824.5 | H19: Grand Total | I19: 0.36 | J19: 0.34 | K19: 0.12 | L19: 0.04 | M19: 0.1 | N19: 0.04 | O19: 1
A20: Hormel Foods | B20: 813.3 | C20: 2710.1 | D20: 139.3
A21: Ingersoll-Rand | B21: 2707.5 | C21: 8209.2 | D21: 509.1 | F21: c | G21: Stockholder's equity and profit seem to be related. As profit goes up, stockholder's equity goes up. The relationship, however, is not very strong.
A22: Ingram Micro | B22: 1399.3 | C22: 2555.6 | D22: 245.2
A23: Kimberly-Clark | B23: 3887.2 | C23: 26881.4 | D23: 1165.8
A24: Kmart | B24: 5979 | C24: 8539.3 | D24: 568
A25: KN Energy | B25: 1223.8 | C25: 1432 | D25: 60
A26: Kohl's | B26: 1162.8 | C26: 11790.5 | D26: 192.3
A27: Lowe's | B27: 3136 | C27: 22635.3 | D27: 482.4
A28: Marketspan | B28: 3000 | C28: 3850.7 | D28: 51.3
A29: Maytag | B29: 507.6 | C29: 4828.7 | D29: 280.6
A30: Mead | B30: 2252 | C30: 3155.8 | D30: 119.7
A31: Mellon Bank | B31: 4521 | C31: 19251.3 | D31: 870
A32: Nike | B32: 3261.6 | C32: 15824.9 | D32: 399.6
A33: Nordstrom | B33: 1316.7 | C33: 5683.2 | D33: 206.7
A34: Nucor | B34: 2072.6 | C34: 3734.3 | D34: 263.7
A35: OfficeMax | B35: 1138.1 | C35: 1014.6 | D35: 42.6
A36: Owens & Minor | B36: 161.1 | C36: 299.6 | D36: 20.1
A37: Phelps Dodge | B37: 2587.4 | C37: 2797.3 | D37: 190.9
A38: Qualcomm | B38: 957.6 | C38: 5862.1 | D38: 108.5
A39: Republic Industries | B39: 5424.2 | C39: 6190.9 | D39: 499.5
A40: Safeco | B40: 5575.8 | C40: 5655.6 | D40: 351.9
A41: Safeway | B41: 3082.1 | C41: 27700.7 | D41: 806.7
A42: Shaw Industries | B42: 797.4 | C42: 3110.3 | D42: 20.6
A43: Staples | B43: 1514 | C43: 2995.2 | D43: 280
A44: Sunoco | B44: 1514 | C44: 2995.2 | D44: 280
A45: SuperValue | B45: 1201.9 | C45: 2701.5 | D45: 230.8
A46: Tenneco | B46: 2504 | C46: 5220.2 | D46: 255
A47: Thermo Electron | B47: 2248.1 | C47: 2218.9 | D47: 181.9
A48: Walgreen | B48: 2849 | C48: 30324.7 | D48: 511
A49: Westvaco | B49: 2246.4 | C49: 2225.6 | D49: 132
A50: Whirlpool | B50: 2001 | C50: 3729.4 | D50: 325
A51: Xerox | B51: 5544 | C51: 35603.7 | D51: 395

Sheet (52)
A1: Company | B1: Stockholders' Equity ($000) | C1: Market Value | D1: Profit ($000)
A2: AGCO | B2: 982.1 | C2: 372.1 | D2: 60.6 | F2: a | H2: Count | I2: Profit ($000)
A3: AMP | B3: 2698 | C3: 12017.6 | D3: 2 | H3: Market Value | I3: 0-200 | J3: 200-400 | K3: 400-600 | L3: 600-800 | M3: 800-1000 | N3: 1000-1200 | O3: Grand Total
A4: Apple Computer | B4: 1642 | C4: 4605 | D4: 309 | H4: 0-8000 | I4: 14 | J4: 13 | K4: 1 | O4: 28
A5: Baxter International | B5: 2839 | C5: 21743 | D5: 315 | H5: 8000-16000 | I5: 4 | J5: 1 | K5: 3 | L5: 2 | N5: 1 | O5: 11
A6: Bergen Brunswick | B6: 629.1 | C6: 2787.5 | D6: 3.1 | H6: 16000-24000 | J6: 1 | K6: 1 | M6: 1 | O6: 3
A7: Best Buy | B7: 557.7 | C7: 10376.5 | D7: 94.5 | H7: 24000-32000 | K7: 1 | M7: 3 | N7: 1 | O7: 5
A8: Charles Schwab | B8: 1429 | C8: 35340.6 | D8: 348.5 | H8: 32000-40000 | J8: 2 | M8: 1 | O8: 3
A9: CMS Energy | B9: 2216 | C9: 4546.6 | D9: 285 | H9: Grand Total | I9: 18 | J9: 17 | K9: 6 | L9: 2 | M9: 5 | N9: 2 | O9: 50
A10: Coca-Cola | B10: 2438 | C10: 15704.9 | D10: 142
A11: Colgate-Palmolive | B11: 2085.6 | C11: 26810.2 | D11: 848.6
A12: Comcast | B12: 3815.3 | C12: 26746.1 | D12: 972.1 | F12: b | H12: Count | I12: Profit ($000)
A13: Conagra | B13: 2778.9 | C13: 15169.4 | D13: 613.2 | H13: Market Value | I13: 0-200 | J13: 200-400 | K13: 400-600 | L13: 600-800 | M13: 800-1000 | N13: 1000-1200 | O13: Grand Total
A14: Conseco | B14: 5273.6 | C14: 11725.7 | D14: 588.1 | H14: 0-8000 | I14: 0.5 | J14: 0.4642857143 | K14: 0.03571428571 | L14: 0 | M14: 0 | N14: 0 | O14: 1
A15: Delta Air Lines | B15: 4023 | C15: 9773.7 | D15: 1001 | H15: 8000-16000 | I15: 0.3636363636 | J15: 0.09090909091 | K15: 0.2727272727 | L15: 0.1818181818 | M15: 0 | N15: 0.09090909091 | O15: 1
A16: Dollar General | B16: 725.8 | C16: 7193.1 | D16: 182 | H16: 16000-24000 | I16: 0 | J16: 0.3333333333 | K16: 0.3333333333 | L16: 0 | M16: 0.3333333333 | N16: 0 | O16: 1
A17: Federated | B17: 5709 | C17: 8301.4 | D17: 662 | H17: 24000-32000 | I17: 0 | J17: 0 | K17: 0.2 | L17: 0 | M17: 0.6 | N17: 0.2 | O17: 1
A18: Fortune Brands | B18: 4097.5 | C18: 5639.2 | D18: 263.1 | H18: 32000-40000 | I18: 0 | J18: 0.6666666667 | K18: 0 | L18: 0 | M18: 0.3333333333 | N18: 0 | O18: 1
A19: GAP | B19: 1573.7 | C19: 39644.9 | D19: 824.5 | H19: Grand Total | I19: 0.36 | J19: 0.34 | K19: 0.12 | L19: 0.04 | M19: 0.1 | N19: 0.04 | O19: 1
A20: Hormel Foods | B20: 813.3 | C20: 2710.1 | D20: 139.3
A21: Ingersoll-Rand | B21: 2707.5 | C21: 8209.2 | D21: 509.1 | F21: c | H21: There appears to be a positive relationship between Profit and Market Value. As profit goes up, Market Value goes up.
A22: Ingram Micro | B22: 1399.3 | C22: 2555.6 | D22: 245.2
A23: Kimberly-Clark | B23: 3887.2 | C23: 26881.4 | D23: 1165.8
A24: Kmart | B24: 5979 | C24: 8539.3 | D24: 568
A25: KN Energy | B25: 1223.8 | C25: 1432 | D25: 60
A26: Kohl's | B26: 1162.8 | C26: 11790.5 | D26: 192.3
A27: Lowe's | B27: 3136 | C27: 22635.3 | D27: 482.4
A28: Marketspan | B28: 3000 | C28: 3850.7 | D28: 51.3
A29: Maytag | B29: 507.6 | C29: 4828.7 | D29: 280.6
A30: Mead | B30: 2252 | C30: 3155.8 | D30: 119.7
A31: Mellon Bank | B31: 4521 | C31: 19251.3 | D31: 870
A32: Nike | B32: 3261.6 | C32: 15824.9 | D32: 399.6
A33: Nordstrom | B33: 1316.7 | C33: 5683.2 | D33: 206.7
A34: Nucor | B34: 2072.6 | C34: 3734.3 | D34: 263.7
A35: OfficeMax | B35: 1138.1 | C35: 1014.6 | D35: 42.6
A36: Owens & Minor | B36: 161.1 | C36: 299.6 | D36: 20.1
A37: Phelps Dodge | B37: 2587.4 | C37: 2797.3 | D37: 190.9
A38: Qualcomm | B38: 957.6 | C38: 5862.1 | D38: 108.5
A39: Republic Industries | B39: 5424.2 | C39: 6190.9 | D39: 499.5
A40: Safeco | B40: 5575.8 | C40: 5655.6 | D40: 351.9
A41: Safeway | B41: 3082.1 | C41: 27700.7 | D41: 806.7
A42: Shaw Industries | B42: 797.4 | C42: 3110.3 | D42: 20.6
A43: Staples | B43: 1514 | C43: 2995.2 | D43: 280
A44: Sunoco | B44: 1514 | C44: 2995.2 | D44: 280
A45: SuperValue | B45: 1201.9 | C45: 2701.5 | D45: 230.8
A46: Tenneco | B46: 2504 | C46: 5220.2 | D46: 255
A47: Thermo Electron | B47: 2248.1 | C47: 2218.9 | D47: 181.9
A48: Walgreen | B48: 2849 | C48: 30324.7 | D48: 511
A49: Westvaco | B49: 2246.4 | C49: 2225.6 | D49: 132
A50: Whirlpool | B50: 2001 | C50: 3729.4 | D50: 325
A51: Xerox | B51: 5544 | C51: 35603.7 | D51: 395

Sheet (53)
A1: Profit ($000) | B1: Equity ($000) | C1: Company | D1: Market Value
A2: 60.6 | B2: 982.1 | C2: AGCO | D2: 372.1 | F2: a
A3: 2 | B3: 2698 | C3: AMP | D3: 12017.6
A4: 309 | B4: 1642 | C4: Apple Computer | D4: 4605
A5: 315 | B5: 2839 | C5: Baxter International | D5: 21743
A6: 3.1 | B6: 629.1 | C6: Bergen Brunswick | D6: 2787.5
A7: 94.5 | B7: 557.7 | C7: Best Buy | D7: 10376.5
A8: 348.5 | B8: 1429 | C8: Charles Schwab | D8: 35340.6
A9: 285 | B9: 2216 | C9: CMS Energy | D9: 4546.6
A10: 142 | B10: 2438 | C10: Coca-Cola | D10: 15704.9
A11: 848.6 | B11: 2085.6 | C11: Colgate-Palmolive | D11: 26810.2
A12: 972.1 | B12: 3815.3 | C12: Comcast | D12: 26746.1
A13: 613.2 | B13: 2778.9 | C13: Conagra | D13: 15169.4
A14: 588.1 | B14: 5273.6 | C14: Conseco | D14: 11725.7
A15: 1001 | B15: 4023 | C15: Delta Air Lines | D15: 9773.7
A16: 182 | B16: 725.8 | C16: Dollar General | D16: 7193.1
A17: 662 | B17: 5709 | C17: Federated | D17: 8301.4
A18: 263.1 | B18: 4097.5 | C18: Fortune Brands | D18: 5639.2
A19: 824.5 | B19: 1573.7 | C19: GAP | D19: 39644.9
A20: 139.3 | B20: 813.3 | C20: Hormel Foods | D20: 2710.1
A21: 509.1 | B21: 2707.5 | C21: Ingersoll-Rand | D21: 8209.2
A22: 245.2 | B22: 1399.3 | C22: Ingram Micro | D22: 2555.6 | F22: b | H22: There appears to be a direct or positive relationship. As profits go up, Equity goes up.
A23: 1165.8 | B23: 3887.2 | C23: Kimberly-Clark | D23: 26881.4
A24: 568 | B24: 5979 | C24: Kmart | D24: 8539.3
A25: 60 | B25: 1223.8 | C25: KN Energy | D25: 1432
A26: 192.3 | B26: 1162.8 | C26: Kohl's | D26: 11790.5
A27: 482.4 | B27: 3136 | C27: Lowe's | D27: 22635.3
A28: 51.3 | B28: 3000 | C28: Marketspan | D28: 3850.7
A29: 280.6 | B29: 507.6 | C29: Maytag | D29: 4828.7
A30: 119.7 | B30: 2252 | C30: Mead | D30: 3155.8
A31: 870 | B31: 4521 | C31: Mellon Bank | D31: 19251.3
A32: 399.6 | B32: 3261.6 | C32: Nike | D32: 15824.9
A33: 206.7 | B33: 1316.7 | C33: Nordstrom | D33: 5683.2
A34: 263.7 | B34: 2072.6 | C34: Nucor | D34: 3734.3
A35: 42.6 | B35: 1138.1 | C35: OfficeMax | D35: 1014.6
A36: 20.1 | B36: 161.1 | C36: Owens & Minor | D36: 299.6
A37: 190.9 | B37: 2587.4 | C37: Phelps Dodge | D37: 2797.3
A38: 108.5 | B38: 957.6 | C38: Qualcomm | D38: 5862.1
A39: 499.5 | B39: 5424.2 | C39: Republic Industries | D39: 6190.9
A40: 351.9 | B40: 5575.8 | C40: Safeco | D40: 5655.6
A41: 806.7 | B41: 3082.1 | C41: Safeway | D41: 27700.7
A42: 20.6 | B42: 797.4 | C42: Shaw Industries | D42: 3110.3
A43: 280 | B43: 1514 | C43: Staples | D43: 2995.2
A44: 280 | B44: 1514 | C44: Sunoco | D44: 2995.2
A45: 230.8 | B45: 1201.9 | C45: SuperValue | D45: 2701.5
A46: 255 | B46: 2504 | C46: Tenneco | D46: 5220.2
A47: 181.9 | B47: 2248.1 | C47: Thermo Electron | D47: 2218.9
A48: 511 | B48: 2849 | C48: Walgreen | D48: 30324.7
A49: 132 | B49: 2246.4 | C49: Westvaco | D49: 2225.6
A50: 325 | B50: 2001 | C50: Whirlpool | D50: 3729.4
A51: 395 | B51: 5544 | C51: Xerox | D51: 35603.7

Sheet (54)
A1: Profit ($000) | B1: Equity ($000) | C1: Company | D1: Market Value
A2: 60.6 | B2: 982.1 | C2: AGCO | D2: 372.1 | F2: a
A3: 2 | B3: 2698 | C3: AMP | D3: 12017.6
A4: 309 | B4: 1642 | C4: Apple Computer | D4: 4605
A5: 315 | B5: 2839 | C5: Baxter International | D5: 21743
A6: 3.1 | B6: 629.1 | C6: Bergen Brunswick | D6: 2787.5
A7: 94.5 | B7: 557.7 | C7: Best Buy | D7: 10376.5
A8: 348.5 | B8: 1429 | C8: Charles Schwab | D8: 35340.6
A9: 285 | B9: 2216 | C9: CMS Energy | D9: 4546.6
A10: 142 | B10: 2438 | C10: Coca-Cola | D10: 15704.9
A11: 848.6 | B11: 2085.6 | C11: Colgate-Palmolive | D11: 26810.2
A12: 972.1 | B12: 3815.3 | C12: Comcast | D12: 26746.1
A13: 613.2 | B13: 2778.9 | C13: Conagra | D13: 15169.4
A14: 588.1 | B14: 5273.6 | C14: Conseco | D14: 11725.7
A15: 1001 | B15: 4023 | C15: Delta Air Lines | D15: 9773.7
A16: 182 | B16: 725.8 | C16: Dollar General | D16: 7193.1
A17: 662 | B17: 5709 | C17: Federated | D17: 8301.4
A18: 263.1 | B18: 4097.5 | C18: Fortune Brands | D18: 5639.2
A19: 824.5 | B19: 1573.7 | C19: GAP | D19: 39644.9
A20: 139.3 | B20: 813.3 | C20: Hormel Foods | D20: 2710.1
A21: 509.1 | B21: 2707.5 | C21: Ingersoll-Rand | D21: 8209.2
A22: 245.2 | B22: 1399.3 | C22: Ingram Micro | D22: 2555.6 | F22: b | H22: There appears to be a slight direct or positive relationship. As MV go up, Equity goes up.
A23: 1165.8 | B23: 3887.2 | C23: Kimberly-Clark | D23: 26881.4
A24: 568 | B24: 5979 | C24: Kmart | D24: 8539.3
A25: 60 | B25: 1223.8 | C25: KN Energy | D25: 1432
A26: 192.3 | B26: 1162.8 | C26: Kohl's | D26: 11790.5
A27: 482.4 | B27: 3136 | C27: Lowe's | D27: 22635.3
A28: 51.3 | B28: 3000 | C28: Marketspan | D28: 3850.7
A29: 280.6 | B29: 507.6 | C29: Maytag | D29: 4828.7
A30: 119.7 | B30: 2252 | C30: Mead | D30: 3155.8
A31: 870 | B31: 4521 | C31: Mellon Bank | D31: 19251.3
A32: 399.6 | B32: 3261.6 | C32: Nike | D32: 15824.9
A33: 206.7 | B33: 1316.7 | C33: Nordstrom | D33: 5683.2
A34: 263.7 | B34: 2072.6 | C34: Nucor | D34: 3734.3
A35: 42.6 | B35: 1138.1 | C35: OfficeMax | D35: 1014.6
A36: 20.1 | B36: 161.1 | C36: Owens & Minor | D36: 299.6
A37: 190.9 | B37: 2587.4 | C37: Phelps Dodge | D37: 2797.3
A38: 108.5 | B38: 957.6 | C38: Qualcomm | D38: 5862.1
A39: 499.5 | B39: 5424.2 | C39: Republic Industries | D39: 6190.9
A40: 351.9 | B40: 5575.8 | C40: Safeco | D40: 5655.6
A41: 806.7 | B41: 3082.1 | C41: Safeway | D41: 27700.7
A42: 20.6 | B42: 797.4 | C42: Shaw Industries | D42: 3110.3
A43: 280 | B43: 1514 | C43: Staples | D43: 2995.2
A44: 280 | B44: 1514 | C44: Sunoco | D44: 2995.2
A45: 230.8 | B45: 1201.9 | C45: SuperValue | D45: 2701.5
A46: 255 | B46: 2504 | C46: Tenneco | D46: 5220.2
A47: 181.9 | B47: 2248.1 | C47: Thermo Electron | D47: 2218.9
A48: 511 | B48: 2849 | C48: Walgreen | D48: 30324.7
A49: 132 | B49: 2246.4 | C49: Westvaco | D49: 2225.6
A50: 325 | B50: 2001 | C50: Whirlpool | D50: 3729.4
A51: 395 | B51: 5544 | C51: Xerox | D51: 35603.7

Sheet Case01(1)
A1: Use sample to learn about customer base
A2: Evaluate coupon issuance
A5: Customer | B5: Type of Customer (P = Used Coupon; R = Did Not Use Coupon) | C5: Items Purchased | D5: Net Sales (Credit Card Sales | E5: Method of Payment (PC = In Store Credit Card) | F5: Gender | G5: Marital Status | H5: Age | J5: Coupon ? | K5: Frequency
A6: 1 | B6: Regular | C6: 1 | D6: 39.5 | E6: Discover | F6: Male | G6: Married | H6: 32 | J6: Promotional | K6: 0.7
A7: 2 | B7: Promotional | C7: 1 | D7: 102.4 | E7: Proprietary Card | F7: Female | G7: Married | H7: 36 | J7: Regular | K7: 0.3
A8: 3 | B8: Regular | C8: 1 | D8: 22.5 | E8: Proprietary Card | F8: Female | G8: Married | H8: 32 | J8: Grand Total | K8: 1
A9: 4 | B9: Promotional | C9: 5 | D9: 100.4 | E9: Proprietary Card | F9: Female | G9: Married | H9: 28
A10: 5 | B10: Regular | C10: 2 | D10: 54 | E10: MasterCard | F10: Female | G10: Married | H10: 34 | J10: Credit Card | K10: Frequency
A11: 6 | B11: Regular | C11: 1 | D11: 44.5 | E11: MasterCard | F11: Female | G11: Married | H11: 44 | J11: American Express | K11: 0.02
A12: 7 | B12: Promotional | C12: 2 | D12: 78 | E12: Proprietary Card | F12: Female | G12: Married | H12: 30 | J12: Discover | K12: 0.04
A13: 8 | B13: Regular | C13: 1 | D13: 22.5 | E13: Visa | F13: Female | G13: Married | H13: 40 | J13: MasterCard | K13: 0.14
A14: 9 | B14: Promotional | C14: 2 | D14: 56.52 | E14: Proprietary Card | F14: Female | G14: Married | H14: 46 | J14: Proprietary Card | K14: 0.7
A15: 10 | B15: Regular | C15: 1 | D15: 44.5 | E15: Proprietary Card | F15: Female | G15: Married | H15: 36 | J15: Visa | K15: 0.1
A16: 11 | B16: Regular | C16: 1 | D16: 29.5 | E16: Proprietary Card | F16: Female | G16: Married | H16: 48 | J16: Grand Total | K16: 1
A17: 12 | B17: Promotional | C17: 1 | D17: 31.6 | E17: Proprietary Card | F17: Female | G17: Married | H17: 40
A18: 13 | B18: Promotional | C18: 9 | D18: 160.4 | E18: Visa | F18: Female | G18: Married | H18: 40 | J18: Gender | K18: Frequency
A19: 14 | B19: Promotional | C19: 2 | D19: 64.5 | E19: Visa | F19: Female | G19: Married | H19: 46 | J19: Female | K19: 0.93
A20: 15 | B20: Regular | C20: 1 | D20: 49.5 | E20: Visa | F20: Male | G20: Single | H20: 24 | J20: Male | K20: 0.07
A21: 16 | B21: Promotional | C21: 2 | D21: 71.4 | E21: Proprietary Card | F21: Male | G21: Single | H21: 36 | J21: Grand Total | K21: 1
A22: 17 | B22: Promotional | C22: 3 | D22: 94 | E22: Proprietary Card | F22: Female | G22: Single | H22: 22
A23: 18 | B23: Regular | C23: 3 | D23: 54.5 | E23: Discover | F23: Female | G23: Married | H23: 40 | J23: Marital Status | K23: Count of Marital Status
A24: 19 | B24: Promotional | C24: 2 | D24: 38.5 | E24: MasterCard | F24: Female | G24: Married | H24: 32 | J24: Married | K24: 0.84
A25: 20 | B25: Promotional | C25: 6 | D25: 44.8 | E25: Proprietary Card | F25: Female | G25: Married | H25: 56 | J25: Single | K25: 0.16
A26: 21 | B26: Promotional | C26: 1 | D26: 31.6 | E26: Proprietary Card | F26: Female | G26: Single | H26: 28 | J26: Grand Total | K26: 1
A27: 22 | B27: Promotional | C27: 4 | D27: 70.82 | E27: Proprietary Card | F27: Female | G27: Married | H27: 38
A28: 23 | B28: Promotional | C28: 7 | D28: 266 | E28: American Express | F28: Female | G28: Married | H28: 50 | J28: # Items Purchased | K28: Frequency
A29: 24 | B29: Regular | C29: 2 | D29: 74 | E29: Proprietary Card | F29: Female | G29: Married | H29: 42 | J29: 1 | K29: 0.29
A30: 25 | B30: Promotional | C30: 2 | D30: 39.5 | E30: Visa | F30: Male | G30: Married | H30: 48 | J30: 2 | K30: 0.27
A31: 26 | B31: Promotional | C31: 1 | D31: 30.02 | E31: Proprietary Card | F31: Female | G31: Married | H31: 60 | J31: 3 | K31: 0.1
A32: 27 | B32: Regular | C32: 1 | D32: 44.5 | E32: Proprietary Card | F32: Female | G32: Married | H32: 54 | J32: 4 | K32: 0.1
A33: 28 | B33: Promotional | C33: 5 | D33: 192.8 | E33: Proprietary Card | F33: Female | G33: Single | H33: 42 | J33: 5 | K33: 0.09
A34: 29 | B34: Promotional | C34: 3 | D34: 71.2 | E34: Proprietary Card | F34: Female | G34: Married | H34: 32 | J34: 6 | K34: 0.07
A35: 30 | B35: Promotional | C35: 1 | D35: 18 | E35: Proprietary Card | F35: Female | G35: Married | H35: 70 | J35: 7 or more | K35: 0.08
A36: 31 | B36: Promotional | C36: 2 | D36: 63.2 | E36: MasterCard | F36: Female | G36: Married | H36: 28 | J36: Grand Total | K36: 1
A37: 32 | B37: Regular | C37: 1 | D37: 75 | E37: Proprietary Card | F37: Female | G37: Married | H37: 52
A38: 33 | B38: Promotional | C38: 3 | D38: 63.2 | E38: Proprietary Card | F38: Female | G38: Married | H38: 44 | J38: Net Sales | K38: Frequency
A39: 34 | B39: Regular | C39: 1 | D39: 40 | E39: Proprietary Card | F39: Female | G39: Married | H39: 34 | J39: 10 up to 60 | K39: 0.51
A40: 35 | B40: Promotional | C40: 5 | D40: 105.5 | E40: MasterCard | F40: Female | G40: Married | H40: 56 | J40: 60 up to 110 | K40: 0.29
A41: 36 | B41: Regular | C41: 1 | D41: 29.5 | E41: MasterCard | F41: Male | G41: Single | H41: 36 | J41: 110 up to 160 | K41: 0.12
A42: 37 | B42: Regular | C42: 2 | D42: 102.5 | E42: Visa | F42: Female | G42: Single | H42: 42 | J42: 160 up to 210 | K42: 0.04
A43: 38 | B43: Promotional | C43: 6 | D43: 117.5 | E43: Proprietary Card | F43: Female | G43: Married | H43: 50 | J43: 210 up to 260 | K43: 0.02
A44: 39 | B44: Promotional | C44: 5 | D44: 13.23 | E44: Proprietary Card | F44: Female | G44: Married | H44: 44 | J44: 260 up to 310 | K44: 0.02
A45: 40 | B45: Regular | C45: 2 | D45: 52.5 | E45: Proprietary Card | F45: Female | G45: Married | H45: 58 | J45: Grand Total | K45: 1
A46: 41 | B46: Promotional | C46: 13 | D46: 198.8 | E46: Proprietary Card | F46: Female | G46: Married | H46: 42
A47: 42 | B47: Promotional | C47: 4 | D47: 19.5 | E47: Visa | F47: Female | G47: Married | H47: 46 | J47: Count | K47: Coupon
A48: 43 | B48: Regular | C48: 2 | D48: 123.5 | E48: Proprietary Card | F48: Female | G48: Married | H48: 48 | J48: Credit Card | K48: Promotional | L48: Regular | M48: Grand Total
A49: 44 | B49: Promotional | C49: 1 | D49: 62.4 | E49: Proprietary Card | F49: Female | G49: Married | H49: 54 | J49: American Express | K49: 1 | L49: 1 | M49: 2
A50: 45 | B50: Promotional | C50: 2 | D50: 23.8 | E50: Proprietary Card | F50: Female | G50: Married | H50: 38 | J50: Discover | L50: 4 | M50: 4
A51: 46 | B51: Promotional | C51: 2 | D51: 39.6 | E51: Proprietary Card | F51: Female | G51: Married | H51: 60 | J51: MasterCard | K51: 7 | L51: 7 | M51: 14
A52: 47 | B52: Regular | C52: 1 | D52: 25 | E52: MasterCard | F52: Female | G52: Married | H52: 46 | J52: Proprietary Card | K52: 57 | L52: 13 | M52: 70
A53: 48 | B53: Promotional | C53: 3 | D53: 63.64 | E53: Proprietary Card | F53: Female | G53: Married | H53: 30 | J53: Visa | K53: 5 | L53: 5 | M53: 10
A54: 49 | B54: Promotional | C54: 1 | D54: 14.82 | E54: Proprietary Card | F54: Female | G54: Married | H54: 32 | J54: Grand Total | K54: 70 | L54: 30 | M54: 100
A55: 50 | B55: Promotional | C55: 9 | D55: 145.2 | E55: MasterCard | F55: Female | G55: Married | H55: 46
A56: 51 | B56: Promotional | C56: 6 | D56: 176.62 | E56: Proprietary Card | F56: Female | G56: Married | H56: 38 | J56: Frequency | K56: Coupon
A57: 52 | B57: Promotional | C57: 5 | D57: 118.8 | E57: Proprietary Card | F57: Male | G57: Married | H57: 68 | J57: Net Sales | K57: Promotional | L57: Regular | M57: Grand Total
A58: 53 | B58: Regular | C58: 1 | D58: 58 | E58: Discover | F58: Female | G58: Single | H58: 78 | J58: 10 up to 60 | K58: 32 | L58: 19 | M58: 51
A59: 54 | B59: Regular | C59: 2 | D59: 74 | E59: Visa | F59: Female | G59: Single | H59: 20 | J59: 60 up to 110 | K59: 21 | L59: 8 | M59: 29
A60: 55 | B60: Regular | C60: 2 | D60: 49.5 | E60: MasterCard | F60: Female | G60: Married | H60: 32 | J60: 110 up to 160 | K60: 9 | L60: 3 | M60: 12
A61: 56 | B61: Promotional | C61: 3 | D61: 141.6 | E61: Proprietary Card | F61: Female | G61: Married | H61: 38 | J61: 160 up to 210 | K61: 4 | M61: 4
A62: 57 | B62: Promotional | C62: 6 | D62: 123.1 | E62: Proprietary Card | F62: Female | G62: Married | H62: 54 | J62: 210 up to 260 | K62: 2 | M62: 2
A63: 58 | B63: Promotional | C63: 2 | D63: 80.4 | E63: Proprietary Card | F63: Female | G63: Married | H63: 48 | J63: 260 up to 310 | K63: 2 | M63: 2
A64: 59 | B64: Promotional | C64: 4 | D64: 65.2 | E64: MasterCard | F64: Female | G64: Married | H64: 46 | J64: Grand Total | K64: 70 | L64: 30 | M64: 100
A65: 60 | B65: Promotional | C65: 4 | D65: 113 | E65: Proprietary Card | F65: Female | G65: Single | H65: 50
A66: 61 | B66: Promotional | C66: 1 | D66: 108.8 | E66: Proprietary Card | F66: Female | G66: Married | H66: 46 | J66: Age | K66: Count of Age
A67: 62 | B67: Promotional | C67: 3 | D67: 59.91 | E67: Proprietary Card | F67: Female | G67: Single | H67: 30 | J67: 20-29 | K67: 10
A68: 63 | B68: Promotional | C68: 5 | D68: 53.6 | E68: Proprietary Card | F68: Female | G68: Married | H68: 54 | J68: 30-39 | K68: 30
A69: 64 | B69: Promotional | C69: 1 | D69: 31.6 | E69: Proprietary Card | F69: Female | G69: Single | H69: 42 | J69: 40-49 | K69: 33
A70: 65 | B70: Promotional | C70: 2 | D70: 49.5 | E70: Proprietary Card | F70: Female | G70: Married | H70: 48 | J70: 50-59 | K70: 16
A71: 66 | B71: Promotional | C71: 1 | D71: 39.6 | E71: Proprietary Card | F71: Female | G71: Married | H71: 62 | J71: 60-69 | K71: 7
A72: 67 | B72: Promotional | C72: 2 | D72: 59.5 | E72: Proprietary Card | F72: Female | G72: Married | H72: 34 | J72: 70-80 | K72: 4
A73: 68 | B73: Promotional | C73: 5 | D73: 146.8 | E73: Proprietary Card | F73: Female | G73: Married | H73: 28 | J73: Grand Total | K73: 100
A74: 69 | B74: Promotional | C74: 2 | D74: 47.2 | E74: Proprietary Card | F74: Male | G74: Married | H74: 46
A75: 70 | B75: Promotional | C75: 8 | D75: 95.05 | E75: Proprietary Card | F75: Female | G75: Married | H75: 54 | J75: Sum | K75: Coupon
A76: 71 | B76: Promotional | C76: 5 | D76: 155.32 | E76: Proprietary Card | F76: Female | G76: Married | H76: 30 | J76: Net Sales | K76: Promotional | L76: Regular | M76: Grand Total
A77: 72 | B77: Promotional | C77: 4 | D77: 58 | E77: MasterCard | F77: Female | G77: Married | H77: 32 | J77: 10 up to 60 | K77: 1258.28 | L77: 776 | M77: 2034.28
A78: 73 | B78: Regular | C78: 1 | D78: 69 | E78: Proprietary Card | F78: Female | G78: Single | H78: 22 | J78: 60 up to 110 | K78: 1704.85 | L78: 656.5 | M78: 2361.35
A79: 74 | B79: Promotional | C79: 2 | D79: 46.5 | E79: Proprietary Card | F79: Female | G79: Married | H79: 32 | J79: 110 up to 160 | K79: 1172.46 | L79: 427.25 | M79: 1599.71
A80: 75 | B80: Promotional | C80: 2 | D80: 45.22 | E80: Proprietary Card | F80: Female | G80: Married | H80: 74 | J80: 160 up to 210 | K80: 728.62 | M80: 728.62
A81: 76 | B81: Promotional | C81: 4 | D81: 84.74 | E81: Proprietary Card | F81: Female | G81: Married | H81: 62 | J81: 210 up to 260 | K81: 482.5 | M81: 482.5
A82: 77 | B82: Regular | C82: 2 | D82: 39 | E82: Proprietary Card | F82: Female | G82: Married | H82: 42 | J82: 260 up to 310 | K82: 553.59 | M82: 553.59
A83: 78 | B83: Promotional | C83: 4 | D83: 111.14 | E83: Proprietary Card | F83: Female | G83: Married | H83: 28 | J83: Grand Total | K83: 5900.3 | L83: 1859.75 | M83: 7760.05
A84: 79 | B84: Promotional | C84: 3 | D84: 86.8 | E84: Proprietary Card | F84: Female | G84: Married | H84: 38
A85: 80 | B85: Regular | C85: 2 | D85: 89 | E85: Discover | F85: Female | G85: Married | H85: 54
A86: 81 | B86: Promotional | C86: 2 | D86: 78 | E86: MasterCard | F86: Female | G86: Married | H86: 68
A87: 82 | B87: Promotional | C87: 6 | D87: 53.2 | E87: Proprietary Card | F87: Female | G87: Single | H87: 30
A88: 83 | B88: Promotional | C88: 4 | D88: 58.5 | E88: Visa | F88: Female | G88: Married | H88: 36
A89: 84 | B89: Promotional | C89: 3 | D89: 46 | E89: Proprietary Card | F89: Female | G89: Married | H89: 44
A90: 85 | B90: Regular | C90: 2 | D90: 37.5 | E90: Visa | F90: Female | G90: Married | H90: 44
A91: 86 | B91: Promotional | C91: 1 | D91: 20.8 | E91: Proprietary Card | F91: Female | G91: Married | H91: 62
A92: 87 | B92: Regular | C92: 6 | D92: 144 | E92: MasterCard | F92: Female | G92: Single | H92: 48
A93: 88 | B93: Regular | C93: 4 | D93: 107 | E93: Proprietary Card | F93: Female | G93: Married | H93: 36
A94: 89 | B94: Promotional | C94: 1 | D94: 31.6 | E94: Proprietary Card | F94: Female | G94: Single | H94: 20
A95: 90 | B95: Promotional | C95: 6 | D95: 57.6 | E95: Proprietary Card | F95: Female | G95: Married | H95: 42
A96: 91 | B96: Promotional | C96: 4 | D96: 95.2 | E96: Proprietary Card | F96: Female | G96: Married | H96: 54
A97: 92 | B97: Promotional | C97: 1 | D97: 22.42 | E97: Proprietary Card | F97: Female | G97: Married | H97: 54
A98: 93 | B98: Regular | C98: 5 | D98: 159.75 | E98: Proprietary Card | F98: Female | G98: Married | H98: 72
A99: 94 | B99: Promotional | C99: 17 | D99: 229.5 | E99: Proprietary Card | F99: Female | G99: Married | H99: 30
A100: 95 | B100: Regular | C100: 3 | D100: 66 | E100: American Express | F100: Female | G100: Married | H100: 46
A101: 96 | B101: Regular | C101: 1 | D101: 39.5 | E101: MasterCard | F101: Female | G101: Married | H101: 44
A102: 97 | B102: Promotional | C102: 9 | D102: 253 | E102: Proprietary Card | F102: Female | G102: Married | H102: 30
A103: 98 | B103: Promotional | C103: 10 | D103: 287.59 | E103: Proprietary Card | F103: Female | G103: Married | H103: 52
A104: 99 | B104: Promotional | C104: 2 | D104: 47.6 | E104: Proprietary Card | F104: Female | G104: Married | H104: 30
A105: 100 | B105: Promotional | C105: 1 | D105: 28.44 | E105: Proprietary Card | F105: Female | G105: Married | H105: 44

Sheet Case01(2)
A1: 1 | B1: 70% of the sales over this period were from promotions. So the promotion seems to be popular
A2: 2 | B2: 70 % of the credit card sales used the proprietary card. This is surprising because they said that they did not send the coupon to regular customers. Since regular customers are more likely to have the proprietary card and the new first time customers would not have a proprietary card, this is unusual. Did the new customers using the promotion sign up for proprietary cards on their first visit?
A3: 3 | B3: 93% of the sales were to women. 84% of the sales were to married people.
A4: 4 | B4: Over 50% (29% + 27%) of the sales were made for 2 or fewer items purchased. Similarly, 80% of the net sales amounts were for $110 or less. Also, 53 of the 70 promotional sales were for $110 or less.
A5: 5 | B5: 57 of the 70 Promotional sales were using the proprietary card. As stated above, this seems unusual.
A6: 6 | B6: 63% of the sales were to people between the ages of 30 and 49. The demographic seems to be: female, married, and 30 - 49 years old.
A7: 7 | B7: The number of sales and the sum of sales for the promotional customers is greater than for the regular customers. Here again, it seems that the promotion has the net effect of increased sales.
